Workbook

Sheet Page 1 - Table 1
C3: CRESCENT REALTY
C5: Alex Galuz
C6: Keller Wiliams
C7: 23975 Park Sorrento, Suite 110 Calabasas, CA 91302 23975 Park Sorrento, Suite 110 Calabasas, CA 91302
C8: Calabasas, CA 91302
C9: Tel: (310) 466-0888
C10: email: Alex@galuzgroup.com
C11: www.galuzgroup.com
C12: Property Address: | D12: 6056 Craner Ave
D13: North Hollywood , CA 91606
C15: LIST PRICE | D15: 6250000
C16: .
C20: INVESTMENT SUMMARY | I20: INVESTMENT HIGHLIGHT
I21: 2022 Built - a collection of meticulously designed modern townhomes
C22: Down Payment: | D22: =D15*E22 -> 2500000 | E22: 0.4 | I22: Each townhome features private balconies , covered 2 car garage
C23: Year Built | D23: 2022 | I23: Locaged only 1.5 miles from the North Hollywood Arts District and NOHO Metro
C24: Zoning | D24: LARD1.5 | I24: SCHEDULED INCOME | M24: Current | O24: Proforma
C25: Units | D25: 8 | I25: Units | J25: Beds | K25: Baths | L25: Units S.F | M25: Rent Average | N25: Monthly Income | O25: Rent | P25: Monthly Income
C26: Appx. Lot Size: | D26: 12900 | E26: SQ. FT | I26: 7 | J26: 4 | K26: 4 | L26: 1800 | M26: 4380 | N26: =M26*I26 -> 30660 | O26: 4495 | P26: =O26*I26 -> 31465
C27: Appx. Bldg NRSF: | D27: 14920 | E27: SQ. FT | I27: 1 | J27: 3 | K27: 3 | L27: 1300 | M27: 3795 | N27: 3795 | O27: 3995 | P27: 3795
C28: Cost per NRSF: | D28: =D15/D27 -> 418.9008043 | I28: 1 | J28: 1 | K28: 1 | L28: 500 | M28: 1950 | N28: 1950 | O28: 2150 | P28: 1950
C29: Cost per Unit: | D29: =D15/D25 -> 781250
C30: Expense/ NRSF: | D30: =P52/D27 -> 7.656874162
C31: Expense/ Unit: | D31: =P52/D25 -> 14280.07031 | I31: Total Schedule Rent: | N31: =SUM(N26:N30) -> 36405 | P31: =SUM(P26:P30) -> 37210
D32: Current | E32: Pro Forma | I32: Pet income | N32: 150 | P32: 150
C33: GRM: | D33: =D15/N35 -> 14.00842747 | E33: =D15/P35 -> 13.71155281 | I33: RUBS Income: | N33: 625 | P33: 625
C34: CAP: | D34: =E45/D15 -> 0.050965542 | E34: =J45/D15 -> 0.052464774 | I34: Monthly Gross Income: | N34: =N31+N32+N33 -> 37180 | P34: =P31+P32+P33 -> 37985
C35: ROI: | D35: =E49/D22 -> 0.04501385516 | E35: =J49/D22 -> 0.1311619352 | I35: Annual Gross Income: | N35: =N34*12 -> 446160 | P35: =P34*12 -> 455820
C39: ANNUAL INCOME | N39: ESTIMATED ANNUAL EXPENSE
E40: Current | J40: Pro Forma | N40: ITEM | P40: AMOUNT
C41: Scheduled Gross Income: | E41: =N35 -> 446160 | J41: =P35 -> 455820 | N41: Taxes: | P41: =D15*0.01245849 -> 77865.5625
C42: Less Vacancy Reserve Rate: | E42: =E41*F42 -> 13384.8 | F42: 0.03 | I42: * | J42: =J41*L42 -> 13674.6 | L42: 0.03 | N42: Insurance: | P42: 3500
C43: Gross Operating Income: | E43: =E41-E42 -> 432775.2 | F43: =E43/E41 -> 0.97 | J43: =J41-J42 -> 442145.4 | L43: =J43/J41 -> 0.97 | N43: Utilities: | P43: 11000
C44: Less Expenses: | E44: =P52 -> 114240.5625 | F44: =E44/E41 -> 0.2560529014 | I44: * | J44: =P52 -> 114240.5625 | L44: =J44/J41 -> 0.2506264808 | N44: Maintenance & Repair's: | P44: 4000
C45: Net Operating Income: | E45: =E43-E44 -> 318534.6375 | F45: =E45/E41 -> 0.7139470986 | J45: =J43-J44 -> 327904.8375 | L45: =J45/J41 -> 0.7193735192 | N45: Trash: | P45: 0
C46: Less Debt Service: | E46: 206000 | F46: =E46/E41 -> 0.4617177694 | J46: =J54*12 -> 0 | L46: =J46/J41 -> 0 | N46: Gardener and Pest: | P46: 2400
C47: Pre-Tax Cash Flow: | E47: =E45-E46 -> 112534.6375 | F47: =E47/D53 -> 0.045013855 | I47: ** | J47: =J45-J46 -> 327904.8375 | L47: =J47/D53 -> 0.131161935 | N47: Misc/Reserves: | P47: 2000
C48: Plus Principal Reduction: | E48: =PPMT(J53,1,J52,-D54) -> 0.0003915288207 | F48: =E48/D53 -> 1.566115283e-10 | J48: =PPMT(J53,1,J52,-D54) -> 0.0003915288207 | L48: =J48/D53 -> 1.566115283e-10 | N48: off site Management | P48: 13000
C49: Total Return Before Taxes: | E49: =E47+E48 -> 112534.6379 | F49: =E49/D53 -> 0.04501385516 | I49: ** | J49: =J47+J48 -> 327904.8379 | L49: =J49/D53 -> 0.1311619352 | N49: Licenses and Permit | P49: 475
C50: *As a Percent of Scheduled Gross Income ** As a Percent of Down Payment
C51: FINANCING INFORMATION
C52: Price: | D52: =D15 -> 6250000 | F52: Terms: | J52: 360 | K52: Year | N52: TOTAL EXPENSES: | P52: =SUM(P41,P42:P51) -> 114240.5625
C53: Down Payment: | D53: =D22 -> 2500000 | F53: Interest Rate: | J53: 0.0575 | N53: Expense / NRSF: | P53: =P52/D27 -> 7.656874162
C54: Loan Amount: | D54: =D52-D53 -> 3750000 | F54: Monthly Payment: | N54: Expense / Unit: | P54: =P52/D25 -> 14280.07031
C56: This information has been secured from sources we believe to be reliable, but we make no representation or warranties, expressed or implied as to the accuracy of the information
C57: References to square footage or age are approximate. Buyer must independently verify the information and bears all risks for any accurancies. Expenses are estimates.

Sheet Rent Roll Sample 2 - Table 1
A12: Unit # | B12: Status | D12: Unit Type | E12: Move In | F12: Curret Rent | H12: Market Rent | I12: Notes
A14: 1 | D14: 4+4 | F14: 4495 | H14: 4495
A15: 2 | D15: 4+4 | F15: 4195 | H15: 4495
A16: 3 | D16: 4+4 | F16: 4495 | H16: 4495
A17: 4 | D17: 4+4 | F17: 4295 | H17: 4495
A18: 5 | D18: 4+4 | F18: 4295 | H18: 4495
A19: 6 | D19: 4+4 | F19: 4195 | H19: 4495
A20: 7 | D20: 4+4 | F20: 4295 | H20: 4495
A21: 8 | D21: 3+3 | F21: 3795 | H21: 3995
A22: 9 | D22: 1+1 | F22: 1950 | H22: 2150
A23: 10
A24: 11
A25: 12
A26: 13
A27: 14
A28: 15
A29: 16
A30: 17
A31: 18
A32: 19
A33: 20
A34: 21
A35: 22
A36: 23
A37: 24
A38: 25
A39: 26
A40: 27
A41: 28
A42: 29
F48: =SUM(F14:F47) -> 36010

Sheet Sheet1
